bitfinex-derivatives/quotes_ETHF0:USTF0_20251229
["timestamp","ask_amount","ask_price","bid_price","bid_amount"]
[1767012312823,0.00511361,2929.4,2928.4,4.36246033]
[1767012313120,0.00511361,2929.4,2928.3,0.17605361]
[1767012313722,0.00511361,2929.4,2928.4,4.782]
[1767012321018,0.00511361,2929.4,2928.3,0.00511361]
[1767012321223,1.22224755,2929.2,2928.3,0.00511361]
[1767012321523,1.22224755,2929.2,2927.9,0.00425946]
[1767012322522,1.22224755,2929.2,2928.3,0.00511361]
[1767012323119,1.22224755,2929.3,2928.3,0.00511361]
[1767012323426,0.3414,2929.1,2927.9,0.00425946]
[1767012324226,0.3414,2929.1,2928.2,0.00511361]
[1767012327428,0.3414,2929.1,2928.4,1.22224755]
[1767012327727,1.22487504,2930.0,2929.0,1.22224755]
[1767012327728,0.00262749,2930.0,2929.0,1.22224755]
[1767012328522,0.00262749,2930.0,2928.9,4.785]
[1767012328722,0.00511361,2929.7,2928.9,4.785]
[1767012329428,1.361e-05,2929.7,2928.9,4.785]
[1767012331123,0.01236373,2929.3,2928.9,4.785]
[1767012331428,1.361e-05,2929.7,2928.9,4.785]
[1767012332526,1.361e-05,2929.7,2928.2,0.00511361]
[1767012332830,1.361e-05,2929.7,2928.4,4.53884819]
[1767012333218,1.361e-05,2929.7,2928.3,4.785]
[1767012333420,1.361e-05,2929.7,2928.5,4.53884819]
[1767012333619,1.361e-05,2929.7,2928.4,4.53884819]
[1767012333820,1.361e-05,2929.7,2928.3,4.95594]
[1767012334221,1.361e-05,2929.7,2928.4,4.34749073]
[1767012334426,1.361e-05,2929.7,2928.5,0.17093]
[1767012334633,1.361e-05,2929.8,2928.5,1.93021568]
[1767012334833,1.361e-05,2929.8,2928.6,4.48050953]
[1767012335228,1.361e-05,2929.8,2928.6,4.65143953]
[1767012335529,0.26678612,2931.4,2928.6,4.65143953]
[1767012335530,0.17075,2931.7,2928.6,4.48050953]
[1767012335727,0.17075,2931.7,2929.1,0.1709]
[1767012335934,0.17075,2931.7,2929.2,4.787]
[1767012336121,0.17075,2931.7,2929.2,9.31555503]
[1767012336122,40.7,2931.6,2929.2,9.31555503]
[1767012336521,0.00511361,2930.7,2930.1,0.00511361]
[1767012336726,0.00511361,2930.7,2930.1,0.00891722]
[1767012337038,0.00511361,2930.7,2929.1,0.1709]
[1767012337226,0.00511361,2930.7,2929.2,4.787]
[1767012337426,0.00511361,2930.7,2929.2,9.27474846]
[1767012338025,0.00511361,2930.7,2929.7,0.00511361]
[1767012339031,0.00247764,2931.6,2929.8,4.34752443]
[1767012339230,0.00247764,2931.6,2929.9,4.787]
[1767012339433,0.00247764,2931.6,2929.7,0.00511361]
[1767012339733,0.00247764,2931.6,2929.7,1.58111361]
[1767012340129,0.00511361,2930.9,2929.7,1.58111361]
[1767012341238,0.00511361,2930.9,2929.7,0.00511361]
[1767012343438,0.00511361,2930.9,2929.8,4.44928607]
[1767012343939,0.00511361,2930.9,2929.7,0.00511361]
[1767012346131,0.17591361,2930.9,2929.2,0.00409225]
[1767012346326,0.1708,2930.8,2929.2,0.00409225]
[1767012346732,0.00511361,2930.9,2929.2,0.00409225]
[1767012346937,0.17082,2930.4,2929.2,0.00409225]
[1767012348336,0.17082,2930.4,2929.5,0.00511361]
[1767012348842,40.80511361,2930.9,2929.2,0.00409225]
[1767012349435,0.17085,2930.0,2928.3,10.372]
[1767012349637,40.80511361,2930.9,2927.7,0.17098]
[1767012349843,0.00511361,2929.6,2929.0,0.00511361]
[1767012350544,0.00511361,2929.6,2929.0,0.00950546]
[1767012351146,1.361e-05,2929.6,2929.0,0.00950546]
[1767012360754,0.17079,2931.0,2929.0,0.00950546]
[1767012361453,0.17079,2930.9,2929.0,0.00950546]
[1767012361756,0.00511361,2930.2,2929.0,0.00950546]
[1767012365557,0.00511361,2930.2,2929.0,4.79350546]
[1767012367056,0.00511361,2930.2,2929.0,0.00950546]
[1767012368865,0.17085,2930.0,2929.0,0.00950546]
[1767012370261,0.00511361,2930.2,2928.1,3.05621691]
[1767012370464,0.17086,2929.8,2928.1,4.784]
[1767012370650,0.00511361,2930.2,2927.9,3.05621691]
[1767012370651,0.17086,2929.7,2927.9,3.05621691]
[1767012370856,0.17087,2929.6,2927.8,4.784]
[1767012371363,0.17087,2929.6,2928.4,0.00511361]
[1767012372463,1.22317878,2929.2,2927.8,0.00262597]
[1767012372660,0.00408816,2929.2,2927.8,0.00262597]
[1767012372975,0.3414,2929.1,2927.8,1.22580475]
[1767012373264,0.00408816,2929.2,2927.9,4.45725924]
[1767012373462,0.17086,2929.7,2928.3,0.00511361]
[1767012373660,0.17086,2929.7,2928.4,4.784]
[1767012374468,0.17496616,2929.7,2928.4,4.784]
[1767012375768,0.01258348,2929.1,2928.4,4.784]
[1767012376161,0.17496616,2929.7,2928.4,4.784]
[1767012379264,0.00410616,2929.7,2928.4,4.784]
[1767012382978,0.00410616,2929.7,2928.5,4.784]
[1767012383276,0.00410616,2929.7,2928.4,4.51155876]
[1767012383467,0.00410616,2929.7,2928.4,9.29455876]
[1767012383669,0.00410616,2929.7,2928.3,0.00511361]
[1767012383867,0.00410616,2929.7,2927.8,0.00262597]
[1767012384578,0.17089,2929.3,2927.8,0.00262597]
[1767012384975,0.17089,2929.3,2928.3,0.00340906]
[1767012386273,0.00410616,2929.7,2928.3,0.00340906]
[1767012387275,0.17087,2929.6,2928.3,0.00340906]
[1767012388471,0.17088,2929.5,2928.3,0.00340906]
[1767012389566,0.17088,2929.4,2928.3,0.00340906]
[1767012398676,0.00410616,2929.7,2928.3,0.00340906]
[1767012400482,1.22260734,2929.4,2928.3,0.00340906]
[1767012410693,0.17497616,2929.7,2928.3,0.00340906]
[1767012411288,1.22260734,2929.6,2928.3,0.00340906]
[1767012413898,0.17497616,2929.7,2928.3,0.00340906]
[1767012413899,1.3975835,2929.7,2928.3,0.00340906]
[1767012415203,1.22260734,2929.4,2928.3,0.00340906]
[1767012417002,0.17497616,2929.7,2928.3,0.00340906]
[1767012417003,1.22260734,2929.1,2928.3,0.00340906]
[1767012418601,1.22260734,2929.2,2928.3,0.00340906]
[1767012418903,0.00410616,2929.7,2928.7,1.22260734]
[1767012419103,0.00410616,2929.7,2928.4,1.22260734]
[1767012419300,0.00410616,2929.7,2928.8,4.777]
[1767012421709,0.00410616,2929.7,2928.5,1.22260734]
[1767012421907,1.22260734,2929.6,2928.3,0.00340906]
[1767012422105,1.22260734,2929.6,2928.4,4.744]
[1767012422812,1.22260734,2929.3,2928.3,0.00340906]
[1767012423312,0.00410616,2929.7,2928.3,1.2260164]
[1767012427806,1.22260734,2929.0,2928.3,0.00340906]
[1767012428110,1.22260734,2928.7,2927.8,0.00262597]
[1767012428906,0.17089,2929.2,2927.8,0.00262597]
[1767012429102,0.00512251,2928.5,2927.8,0.00262597]
[1767012429818,0.00512251,2928.5,2927.8,1.22523331]
[1767012430415,0.00512251,2928.5,2927.8,0.00262597]
[1767012437620,1.22260734,2928.2,2926.9,10.372]
[1767012437919,1.22260734,2928.2,2927.0,4.776]
[1767012438628,0.00512251,2928.5,2927.0,4.77935027]
[1767012438824,1.22260734,2928.3,2927.1,4.779]
[1767012439128,1.22260734,2928.3,2927.0,0.00335027]
[1767012439331,1.22260734,2928.3,2927.2,4.779]
[1767012440935,0.00512251,2928.5,2927.2,4.779]
[1767012441326,1.22260734,2928.3,2927.0,1.22595761]
[1767012441623,1.22772985,2928.5,2927.1,4.78]
[1767012443529,1.22772985,2928.5,2927.2,4.78]
[1767012444130,1.22772985,2928.5,2927.0,1.22595761]
[1767012444322,1.22772985,2928.5,2927.1,4.779]
[1767012446736,1.22772985,2928.5,2927.0,1.22595761]
[1767012446938,1.22772985,2928.5,2927.1,4.779]
[1767012448827,1.22260734,2928.2,2927.0,0.00335027]
[1767012449123,1.22260734,2928.2,2927.1,4.779]
[1767012450637,1.22260734,2928.2,2927.2,4.781]
[1767012451141,1.22260734,2928.2,2927.0,0.00335027]
[1767012451142,1.22260734,2928.2,2927.3,4.782]
[1767012452231,1.22772985,2928.5,2927.3,4.782]
[1767012452535,0.00512251,2928.5,2927.4,1.22260734]
[1767012454435,1.22260734,2928.1,2927.0,0.17437027]
[1767012454638,0.00512251,2928.5,2927.0,0.17437027]
[1767012454832,1.22260734,2928.3,2927.1,4.782]
[1767012455343,0.00512251,2928.5,2927.1,6.00460734]
[1767012456138,0.17091,2929.0,2927.1,6.00460734]
[1767012456339,1.22260734,2929.2,2927.7,1.22260734]
[1767012457137,0.00512251,2928.7,2928.2,0.00512251]
[1767012458342,0.00512251,2928.7,2927.3,1.39360734]
[1767012458535,0.00512251,2928.7,2927.4,4.782]
[1767012459237,0.00512251,2928.7,2927.6,1.22260734]
[1767012459844,1.39348734,2929.4,2927.9,1.22260734]
[1767012460236,1.22260734,2928.0,2927.5,4.33817855]
[1767012460430,0.17092,2928.7,2927.0,0.00335027]
[1767012460635,0.17092,2928.7,2927.1,4.782]
[1767012460841,0.00512251,2928.2,2927.6,0.00512251]
[1767012461646,0.17088,2929.4,2927.6,0.00512251]
[1767012462642,0.00410616,2929.7,2928.3,1.22324727]
[1767012462941,0.00410616,2929.7,2928.3,4.782]
[1767012463644,0.00512251,2929.3,2928.3,4.782]
[1767012464541,0.00512251,2929.3,2927.9,1.39421727]
[1767012464742,0.00512251,2929.3,2928.0,4.781]
[1767012464936,0.00512251,2929.3,2928.1,4.781]
[1767012465136,0.00512251,2929.3,2927.9,0.17097]
[1767012465536,0.00512251,2929.3,2928.0,3.235]
[1767012465736,0.00410616,2929.7,2928.1,1.22324727]
[1767012466144,0.00410616,2929.7,2928.2,4.51710719]
[1767012466839,0.00512251,2929.2,2928.1,4.40205869]
[1767012467344,0.00512251,2929.2,2928.1,4.51022369]
[1767012467544,0.00512251,2929.2,2928.2,4.781]
[1767012467744,0.00410616,2929.7,2928.2,4.781]
[1767012467944,0.00410616,2929.7,2928.3,4.51022369]
[1767012468844,0.1708,2930.8,2928.3,4.51022369]
[1767012469244,40.9708,2930.7,2928.3,4.51022369]
[1767012469835,0.00338534,2929.8,2929.2,0.00512251]
[1767012470039,0.00338534,2929.8,2929.2,0.00754628]
[1767012471844,0.17082,2930.5,2929.2,0.00754628]
[1767012473645,0.00411179,2930.7,2929.2,0.00754628]
[1767012474544,0.00411179,2930.7,2929.3,4.53663199]
[1767012474950,1.179e-05,2930.7,2929.3,4.53663199]
[1767012476455,1.179e-05,2930.7,2929.3,4.70752199]
[1767012477856,1.179e-05,2930.7,2929.4,0.17088]
[1767012478258,1.179e-05,2930.7,2929.5,4.34367415]
[1767012480050,1.179e-05,2930.7,2929.5,4.51454415]
[1767012480456,1.179e-05,2930.7,2929.5,0.17087]
[1767012480649,1.179e-05,2930.7,2929.6,9.28514652]
[1767012481050,1.179e-05,2930.7,2929.7,0.17086]
[1767012481253,10.375,2931.7,2929.7,0.17086]
[1767012481450,0.17072,2932.1,2929.8,4.56623152]
[1767012481852,0.17072,2932.1,2929.8,0.17085]
[1767012482058,0.17072,2932.1,2929.9,4.39538152]
[1767012482357,0.1741231,2932.1,2930.7,0.00512251]
[1767012483159,0.17073,2932.0,2930.7,0.00512251]
[1767012483758,0.0051,2931.6,2930.2,4.78]
[1767012484752,0.0051,2931.6,2930.6,0.00512251]
[1767012487964,0.0034031,2932.1,2930.7,0.1708]
[1767012488164,0.0034031,2932.1,2930.8,1.22070068]
[1767012488361,0.0034031,2932.1,2930.7,0.1708]
[1767012488767,0.0034031,2932.1,2930.6,0.00512251]
[1767012489068,0.0034031,2932.1,2930.6,4.74212251]
[1767012489268,0.0034031,2932.1,2930.6,0.00512251]
[1767012495375,0.0034031,2932.1,2930.6,4.78112251]
[1767012500685,0.0034031,2932.1,2930.7,4.775]
[1767012501075,0.01499525,2931.4,2930.6,4.77912251]
[1767012501477,0.0034031,2932.1,2930.6,4.77912251]
[1767012501778,0.01088134,2931.4,2930.6,4.77912251]
[1767012502183,0.0034031,2932.1,2930.6,4.77912251]
[1767012502678,0.01088216,2931.4,2930.6,4.77912251]
[1767012502878,0.01088216,2931.4,2930.6,0.00512251]
[1767012503079,0.0034031,2932.1,2930.6,0.00512251]
[1767012503280,0.53377895,2932.0,2930.6,0.00512251]
[1767012503485,0.01088217,2931.3,2930.6,0.00512251]
[1767012503987,0.0034031,2932.1,2930.6,0.00512251]
[1767012504187,0.53376772,2932.0,2930.6,0.00512251]
[1767012504388,0.53376772,2931.9,2930.6,0.00512251]
[1767012504685,0.0034031,2932.1,2930.6,0.00512251]
[1767012504881,0.53374821,2932.0,2930.6,0.00512251]
[1767012505091,0.0034031,2932.1,2930.6,0.00512251]
[1767012505279,0.53374731,2932.0,2930.6,0.00512251]
[1767012505585,0.0034031,2932.1,2930.6,0.00512251]
[1767012505791,0.53374657,2932.0,2930.6,0.00512251]
[1767012506087,0.0034031,2932.1,2930.6,0.00512251]
[1767012506285,0.53374688,2932.0,2930.6,0.00512251]
[1767012506585,0.53374688,2931.9,2930.6,0.00512251]
[1767012506790,0.0034031,2932.1,2930.6,0.00512251]
[1767012507086,0.53374642,2932.0,2930.6,0.00512251]
[1767012507387,0.0034031,2932.1,2930.6,0.00512251]
[1767012507589,0.53374398,2932.0,2930.6,0.00512251]
[1767012507788,0.0034031,2932.1,2930.6,0.00512251]
[1767012507982,0.53374144,2932.0,2930.6,0.00512251]
[1767012508180,0.0034031,2932.1,2930.6,0.00512251]
[1767012508383,0.53374135,2932.0,2930.6,0.00512251]
[1767012508684,0.0034031,2932.1,2930.6,0.00512251]
[1767012508883,0.53374135,2932.0,2930.6,0.00512251]
[1767012509084,0.0034031,2932.1,2930.6,0.00512251]
[1767012509895,0.53373983,2932.0,2930.6,0.00512251]
[1767012510189,0.0034031,2932.1,2930.6,0.00512251]
[1767012513782,0.0034031,2932.1,2930.7,4.772]
[1767012518091,0.0034031,2932.1,2930.6,1.22506519]
[1767012518296,0.0034031,2932.1,2930.7,4.772]
[1767012519094,1.21994268,2931.6,2929.9,3.05561019]
[1767012519397,1.21994268,2931.6,2929.8,4.94186]
[1767012519593,1.39067268,2932.0,2929.8,6.16180268]
[1767012519787,0.533858,2931.9,2929.9,4.47239926]
[1767012519993,0.17073,2932.0,2929.9,4.47239926]
[1767012520199,0.00512251,2931.2,2930.6,0.00512251]
[1767012523299,0.17073,2932.0,2930.6,0.00512251]
[1767012523492,0.0034031,2932.1,2930.6,0.00512251]
[1767012525100,0.1741231,2932.1,2930.6,0.00512251]
[1767012528797,0.0034031,2932.1,2930.6,0.00512251]
[1767012529508,0.0034031,2932.1,2930.6,3.0607327]
[1767012533206,0.0034031,2932.1,2930.7,4.50250311]
[1767012533407,0.0034031,2932.1,2930.9,3.05561019]
[1767012533612,0.0034031,2932.1,2931.0,4.777]
[1767012534112,0.0034031,2932.1,2930.8,3.05561019]
[1767012534314,0.0034031,2932.1,2930.9,4.778]
[1767012535713,0.0034031,2932.1,2931.0,4.78]
[1767012537417,0.0034031,2932.1,2930.8,3.05561019]
[1767012537713,0.0034031,2932.1,2930.6,0.00512251]
[1767012537912,0.1741231,2932.1,2930.6,0.00512251]
[1767012538803,0.17073,2932.0,2930.6,0.00512251]
[1767012539214,0.17074,2931.9,2930.6,0.00512251]
[1767012539516,0.0034031,2932.1,2930.6,0.00512251]
[1767012539517,0.17074,2931.8,2930.6,0.00512251]
[1767012540518,0.17075,2931.7,2930.6,0.00512251]
[1767012542414,0.17075,2931.6,2930.6,0.00512251]
[1767012543217,0.17079,2930.9,2929.8,3.05561019]
[1767012543415,0.17082,2930.4,2929.4,3.05561019]
[1767012543609,0.17082,2930.4,2929.2,7.84003396]
[1767012544219,0.00512251,2930.1,2929.5,0.00512251]
[1767012548022,2.251e-05,2930.1,2929.5,0.00512251]
[1767012548218,40.8,2931.4,2929.5,0.00512251]
[1767012548417,0.17076,2931.6,2929.5,0.00512251]
[1767012548920,0.17076,2931.6,2929.6,4.50252987]
[1767012549420,40.97076,2931.6,2929.6,4.50252987]
[1767012549620,40.8,2931.6,2929.6,4.50252987]
[1767012550221,0.17077,2931.4,2929.6,4.50252987]
[1767012551918,0.17077,2931.4,2929.5,0.00512251]
[1767012553216,0.17077,2931.3,2929.6,4.788]
[1767012553720,0.17077,2931.3,2929.7,4.788]
[1767012555321,0.17078,2931.2,2929.7,4.788]
[1767012556121,0.17079,2931.0,2929.7,4.788]
[1767012556523,1.22134602,2930.7,2929.7,4.788]
[1767012556717,1.22134602,2930.7,2929.5,0.00512251]
[1767012556920,1.22134602,2930.4,2929.5,0.00512251]
[1767012557122,1.22134602,2930.4,2929.6,4.787]
[1767012557519,1.22134602,2930.4,2929.5,4.79212251]
[1767012559325,1.22134602,2930.4,2929.5,0.00512251]
[1767012565222,1.22134602,2931.0,2929.5,0.00512251]
[1767012565522,1.22134602,2931.0,2929.5,1.22646853]
[1767012565826,1.22134602,2931.0,2929.5,0.00512251]
[1767012567023,1.22134602,2930.7,2929.5,0.00512251]
[1767012567732,1.22134602,2930.4,2929.5,0.00512251]
[1767012568533,1.22134602,2930.7,2929.5,0.00512251]
[1767012568729,1.39212602,2931.1,2929.7,1.22134602]
[1767012569124,1.39212602,2931.1,2929.5,0.00512251]
[1767012571923,1.39212602,2931.1,2929.6,4.794]
[1767012572234,1.22134602,2930.8,2929.7,4.794]
[1767012572936,10.375,2931.6,2929.7,4.794]
[1767012572937,1.22134602,2931.2,2929.7,4.794]
[1767012573138,1.22134602,2931.3,2929.8,1.22134602]
[1767012573640,1.22134602,2931.3,2929.7,4.794]
[1767012574432,1.22134602,2931.3,2929.8,4.45528318]
[1767012574937,1.22134602,2931.3,2929.7,4.794]
[1767012578235,1.22134602,2931.3,2929.8,4.36657263]
[1767012578841,0.17072,2932.2,2930.6,1.22134602]
[1767012579043,1.22134602,2931.6,2930.7,4.798]
[1767012579250,1.22134602,2931.6,2930.0,0.17084]
[1767012579540,1.22134602,2931.6,2930.1,4.799]
[1767012579735,1.22134602,2932.0,2929.5,3.05561019]
[1767012579935,1.22134602,2930.5,2929.1,3.05561019]
[1767012580235,1.22134602,2930.8,2929.6,0.00512251]
[1767012580236,1.22134602,2930.3,2929.6,0.00512251]
[1767012581943,1.22134602,2930.8,2929.6,0.00512251]
[1767012582539,0.00512251,2931.0,2929.6,0.00512251]
[1767012598059,0.00512251,2931.0,2929.7,4.795]
[1767012601355,10.375,2931.9,2929.8,4.47694609]
[1767012601561,40.9741231,2932.1,2929.8,4.47694609]
[1767012601562,40.9741231,2932.1,2930.0,0.17084]
[1767012601757,40.8034031,2932.1,2930.0,4.795]
[1767012601961,1.46577287,2932.0,2930.0,4.795]
[1767012602163,1.46577287,2931.9,2930.0,4.795]
[1767012602360,0.17077,2931.4,2930.0,4.795]
[1767012602751,0.17077,2931.3,2929.6,0.00512251]
[1767012602956,0.17078,2931.2,2929.6,0.00512251]
[1767012606562,1.22153947,2931.1,2929.6,0.00512251]
[1767012608261,0.17078,2931.2,2929.6,0.00512251]
[1767012608567,1.22153947,2931.8,2929.7,4.52547867]
[1767012609359,0.17075,2931.6,2929.7,4.52547867]
[1767012609559,0.17075,2931.6,2929.8,1.22153947]
[1767012609960,0.17075,2931.6,2929.9,4.36318989]
[1767012611063,0.17075,2931.6,2929.7,4.4589113]
[1767012611268,40.8034031,2932.1,2929.6,0.17598251]
[1767012611665,40.8034031,2932.1,2929.7,4.4589113]
[1767012612470,40.8034031,2932.1,2929.7,4.6297713]
[1767012613170,40.8034031,2932.1,2929.8,0.17086]
[1767012613471,40.8034031,2932.1,2929.9,4.52632196]
[1767012615175,0.0034031,2932.1,2929.9,4.52632196]
[1767012615570,0.0034031,2932.1,2930.0,4.792]
[1767012616075,0.0034031,2932.1,2930.1,4.41398349]
[1767012616271,0.0034031,2932.1,2930.1,9.20598349]
[1767012616870,0.0034031,2932.1,2930.1,4.792]
[1767012618174,0.0034031,2932.1,2929.6,0.00512251]
[1767012618380,0.17076,2931.5,2929.7,4.792]
[1767012618680,5.85476,2931.5,2929.7,4.792]
[1767012620976,5.85476,2931.5,2929.6,0.00512251]
[1767012621165,40.8,2931.4,2929.6,0.00512251]
[1767012623177,40.97077,2931.4,2929.6,0.00512251]
[1767012623379,0.17078,2931.2,2929.6,0.00512251]
[1767012623683,0.17079,2931.0,2929.6,0.00512251]
[1767012626881,40.8,2931.4,2929.6,0.00512251]
[1767012627191,0.17075,2931.6,2929.6,0.00512251]
[1767012628078,0.17075,2931.6,2929.7,4.41595924]
[1767012628679,0.17075,2931.6,2929.7,4.58681924]
[1767012628879,0.0034031,2932.1,2929.7,4.58681924]
[1767012629276,40.8034031,2932.1,2929.8,0.17086]
[1767012629588,40.8034031,2932.1,2929.9,4.46149778]
[1767012630284,0.0034031,2932.1,2929.9,4.46149778]
[1767012631192,0.0034031,2932.1,2930.0,3.0646248]
[1767012631488,0.0034031,2932.1,2930.1,4.45046709]
[1767012631691,0.53386997,2932.0,2930.1,4.45046709]
[1767012631992,0.17078,2931.2,2929.6,0.00512251]
[1767012632289,5.751,2931.1,2929.6,0.00512251]
[1767012633295,5.92178,2931.1,2929.6,0.00512251]
[1767012636182,40.8,2931.0,2929.6,0.00512251]
[1767012641698,0.17078,2931.1,2929.6,0.00512251]
[1767012641699,5.96678,2931.1,2929.6,0.00512251]
[1767012644405,0.17078,2931.1,2929.6,0.00512251]
[1767012644706,0.17078,2931.1,2929.8,3.0646248]
[1767012644907,5.796,2931.5,2929.8,3.0646248]
[1767012645306,5.796,2931.5,2929.7,4.4265645]
[1767012645307,5.796,2931.5,2929.9,3.0646248]
[1767012645513,0.17074,2931.8,2929.9,7.4911893]
[1767012645703,0.17075,2931.7,2929.9,7.4911893]
[1767012645899,0.17075,2931.7,2929.8,3.0646248]
[1767012646405,0.17075,2931.7,2929.9,7.58136548]
[1767012646808,0.17075,2931.7,2929.9,3.0646248]
[1767012647001,0.17075,2931.6,2929.9,3.0646248]
[1767012647310,0.17075,2931.6,2929.6,0.00512251]
[1767012647311,0.17075,2931.6,2929.8,7.8526248]
[1767012647806,0.17075,2931.6,2929.8,3.0646248]
[1767012648112,40.8,2931.9,2929.8,3.0646248]
[1767012648113,0.17076,2931.5,2929.8,3.0646248]
[1767012648407,0.17077,2931.3,2929.6,0.00512251]
[1767012649809,0.3411,2931.2,2929.6,0.00512251]
[1767012654515,1.22116683,2931.1,2929.6,1.22628934]
[1767012655413,1.22116683,2931.1,2929.6,4.29091414]
[1767012656807,1.22116683,2931.1,2929.6,1.22628934]
[1767012657919,1.22116683,2931.1,2929.6,4.29091414]
[1767012658915,1.22116683,2930.8,2929.7,4.794]
[1767012661320,1.22116683,2930.8,2929.6,0.00512251]
[1767012661520,1.22116683,2930.8,2929.7,4.798]
[1767012662520,1.22116683,2930.4,2929.6,0.00512251]
[1767012665822,1.39196683,2930.8,2929.6,0.00512251]
[1767012666222,1.22116683,2930.5,2929.6,0.00512251]
[1767012667532,0.3412,2930.4,2929.6,0.00512251]
[1767012668024,0.3412,2930.4,2929.6,1.22628934]
[1767012668421,0.3412,2930.4,2929.6,0.00512251]
[1767012671827,0.3412,2930.4,2929.6,1.22628934]
[1767012672027,10.375,2931.3,2929.9,1.22116683]
[1767012672329,1.22116683,2931.5,2930.0,4.798]
[1767012673628,1.22116683,2931.5,2930.0,4.799]
[1767012677729,1.39191683,2931.7,2930.2,1.22116683]
[1767012678530,0.01089613,2931.0,2930.0,4.799]
[1767012679133,1.22116683,2931.4,2930.0,4.799]
[1767012681627,1.39191683,2931.7,2930.0,4.799]
[1767012684438,1.22116683,2931.4,2930.1,4.804]
[1767012689136,0.01446048,2930.8,2930.1,4.804]
[1767012690134,1.22116683,2931.4,2930.1,4.804]
[1767012690439,0.01446048,2930.5,2930.1,4.804]
[1767012690641,1.22116683,2931.4,2930.1,4.804]
[1767012691140,1.22116683,2931.4,2930.1,4.808]
[1767012691937,1.22116683,2931.1,2930.1,4.808]
[1767012692541,1.39192683,2931.4,2930.1,4.808]
[1767012693241,1.39192683,2931.4,2929.6,4.29091414]
[1767012693242,1.39192683,2931.4,2929.9,1.22116683]
[1767012693440,1.39192683,2931.4,2930.0,4.808]
[1767012695638,0.17076,2931.4,2930.0,4.808]
[1767012696038,1.22116683,2931.3,2930.0,4.808]
[1767012696343,0.17076,2931.4,2930.0,4.808]
[1767012696544,1.22116683,2931.3,2930.0,4.808]
[1767012697348,0.17076,2931.4,2930.0,6.02916683]
[1767012697651,0.17076,2931.4,2930.3,1.22116683]
[1767012699349,1.22116683,2931.3,2929.8,3.0646248]
[1767012699545,1.22116683,2931.3,2929.6,0.00512251]
[1767012699546,1.22116683,2930.4,2929.6,0.00512251]
[1767012700538,1.39195683,2930.9,2929.6,0.00512251]
[1767012702346,0.17079,2930.9,2929.6,0.00512251]
[1767012702551,1.22116683,2930.6,2929.6,0.00512251]
[1767012703045,1.13116683,2930.6,2929.6,0.00512251]
[1767012704444,0.17079,2930.9,2929.6,0.00512251]
[1767012709955,0.16869,2930.9,2929.6,0.00512251]
[1767012717453,40.8,2931.4,2929.6,0.00512251]
[1767012717763,0.1708,2930.8,2929.6,0.00512251]
[1767012719559,0.17081,2930.7,2929.6,0.00512251]
[1767012720960,0.17081,2930.6,2929.6,0.00512251]
[1767012721754,1.22139518,2930.4,2929.2,0.00242377]
[1767012721961,0.17084,2930.2,2929.2,0.00242377]
[1767012722769,0.00512251,2930.0,2929.4,0.00512251]
[1767012722967,0.0091243,2930.0,2929.4,0.00512251]
[1767012723555,0.0091243,2930.0,2929.2,0.00242377]
[1767012724668,0.0091243,2930.0,2929.3,0.00512251]
[1767012733683,0.1708,2930.7,2929.3,0.00512251]
[1767012734472,0.00512251,2930.3,2929.3,0.00512251]
[1767012747485,0.00512251,2930.3,2929.4,4.44011093]
[1767012747789,2.251e-05,2930.3,2929.4,4.44011093]
[1767012749292,2.251e-05,2930.3,2929.5,4.8]
[1767012750883,0.00309146,2930.7,2929.6,5.74515879]
[1767012753694,10.36884146,2931.6,2929.6,5.74515879]
[1767012753897,0.17075,2931.6,2929.6,5.74515879]
[1767012754597,0.1738919,2931.6,2929.6,5.74515879]
[1767012754801,0.17076,2931.5,2929.6,5.74515879]
[1767012755901,0.16656,2931.5,2929.6,5.74515879]
[1767012758305,0.0031419,2931.6,2929.6,5.74515879]
[1767012758306,0.17077,2931.4,2929.6,5.74515879]
[1767012758699,0.17077,2931.4,2929.7,0.177]
[1767012759294,0.17077,2931.3,2929.7,0.177]
[1767012759903,0.17078,2931.2,2929.7,0.177]
[1767012760305,0.17078,2931.2,2929.8,4.812]
[1767012762700,0.0031419,2931.6,2929.7,0.177]
[1767012762908,0.17078,2931.1,2929.8,3.75]
[1767012763109,0.17079,2931.0,2929.7,4.989]
[1767012763405,0.0031419,2931.6,2929.7,4.812]
[1767012763607,1.22453708,2931.6,2929.4,0.177]
[1767012763808,1.22453708,2931.6,2929.5,4.812]
[1767012764209,0.17079,2931.0,2929.5,4.812]
[1767012764408,0.17079,2931.0,2929.5,4.989]
[1767012766606,0.17079,2931.0,2929.7,1.22110038]
[1767012768705,0.17079,2930.9,2929.7,1.22110038]
[1767012773304,0.17079,2930.9,2929.7,1.39810038]
[1767012773916,1.22110038,2931.2,2929.7,1.39810038]
[1767012777214,1.22110038,2931.4,2929.7,1.39810038]
[1767012777821,1.22110038,2931.4,2930.0,1.22110038]
[1767012779520,0.17076,2931.5,2930.3,1.22110038]
[1767012780025,0.01085917,2930.9,2930.3,1.22110038]
[1767012780227,0.17076,2931.5,2930.3,1.22110038]
[1767012780421,0.0031419,2931.6,2930.6,1.22110038]
[1767012780725,0.17072,2932.1,2930.9,1.22110038]
[1767012780918,0.01084825,2931.5,2930.9,1.22110038]
[1767012781124,4.825e-05,2931.5,2930.9,1.22110038]
[1767012781323,1.39182038,2932.1,2930.9,1.22110038]
[1767012781516,0.01086002,2931.5,2930.9,1.22110038]
[1767012781713,0.17508722,2932.1,2930.9,1.22110038]
[1767012782027,0.01086044,2931.5,2930.9,1.22110038]
[1767012782418,0.17508722,2932.1,2930.9,1.22110038]
[1767012782817,0.01086126,2931.5,2930.9,1.22110038]
[1767012783221,0.17508722,2932.1,2930.9,1.22110038]
[1767012783624,0.01084951,2931.5,2930.9,1.22110038]
[1767012783831,0.01084951,2931.5,2930.8,0.00512251]
[1767012784629,0.17508722,2932.1,2930.8,0.00512251]
[1767012784829,0.01084951,2931.2,2930.8,0.00512251]
[1767012785825,0.17508722,2932.1,2930.8,0.00512251]
[1767012786326,1.39183038,2932.0,2930.8,0.00512251]
[1767012789040,0.17073,2932.0,2930.8,0.00512251]
[1767012789931,0.17073,2932.0,2930.9,1.22110038]
[1767012791339,1.39183038,2932.0,2930.8,0.00512251]
[1767012791643,1.39183038,2932.0,2930.8,4.81112251]
[1767012795143,1.22110038,2932.0,2930.8,4.81112251]
[1767012795543,1.39183038,2932.0,2930.8,4.81112251]
[1767012797146,1.39183038,2932.0,2930.8,4.81012251]
[1767012798447,0.17073,2932.0,2930.8,4.81012251]
[1767012805543,0.17073,2932.0,2930.8,4.98712251]
[1767012808654,0.17073,2932.0,2930.9,1.22110038]